[Event "*** SCC Grand Prix: Titled Tuesday Blitz"]
[Site "Chess.com"]
[Date "2020.07.14"]
[Round "3"]
[White "silverback96"]
[Black "amatatanav"]
[Result "1-0"]
[WhiteElo "2239"]
[BlackElo "2459"]
[TimeControl "180+1"]
[EndTime "10:28:01 PDT"]
[Termination "silverback96 won on time"]

1. e4 {[%clk 0:02:59.8]} 1... c5 {[%clk 0:02:59]} 2. Nf3 {[%clk 0:02:59.4]} 2...
Nc6 {[%clk 0:02:59.2]} 3. Bb5 {[%clk 0:02:58.8]} 3... e6 {[%clk 0:02:59]} 4.
Bxc6 {[%clk 0:02:55.9]} 4... bxc6 {[%clk 0:02:59.9]} 5. b3 {[%clk 0:02:56.3]}
5... Ne7 {[%clk 0:02:11.6]} 6. Bb2 {[%clk 0:02:54.5]} 6... Ng6 {[%clk
0:02:10.6]} 7. e5 {[%clk 0:02:52.3]} 7... f6 {[%clk 0:02:08.9]} 8. exf6 {[%clk
0:02:46.9]} 8... gxf6 {[%clk 0:02:08]} 9. h4 {[%clk 0:02:45.3]} 9... e5 {[%clk
0:01:30.1]} 10. h5 {[%clk 0:02:22.1]} 10... Ne7 {[%clk 0:01:28.4]} 11. d3 {[%clk
0:02:21.5]} 11... d6 {[%clk 0:01:28]} 12. Nbd2 {[%clk 0:02:21]} 12... Rg8 {[%clk
0:01:02.3]} 13. Qe2 {[%clk 0:01:57.9]} 13... Rxg2 {[%clk 0:00:42.3]} 14. Ne4
{[%clk 0:01:57.7]} 14... Nf5 {[%clk 0:00:33.8]} 15. O-O-O {[%clk 0:01:41.5]}
15... d5 {[%clk 0:00:30.4]} 16. Nxf6+ {[%clk 0:01:20.2]} 16... Qxf6 {[%clk
0:00:31.3]} 17. Nxe5 {[%clk 0:01:20.1]} 17... Qh6+ {[%clk 0:00:08.6]} 18. Kb1
{[%clk 0:01:19.2]} 18... Be6 {[%clk 0:00:02.6]} 19. Rde1 {[%clk 0:01:00.2]}
19... O-O-O {[%clk 0:00:02.6]} 20. Nxc6 {[%clk 0:00:59.2]} 20... Rd6 {[%clk
0:00:02.8]} 21. Ne5 {[%clk 0:00:50.2]} 21... Ng3 {[%clk 0:00:02.8]} 22. Qf3
{[%clk 0:00:48.7]} 22... Nxh1 {[%clk 0:00:03]} 23. Qxg2 {[%clk 0:00:44.3]} 23...
Nxf2 {[%clk 0:00:03]} 24. Qxf2 {[%clk 0:00:43.5]} 24... Bg7 {[%clk 0:00:03.4]}
25. Qxc5+ {[%clk 0:00:43.1]} 25... Kb7 {[%clk 0:00:01.2]} 26. Qxd6 {[%clk
0:00:41.5]} 1-0

[Event "*** SCC Grand Prix: Titled Tuesday Blitz"]
[Site "Chess.com"]
[Date "2020.07.14"]
[Round "3"]
[White "Susal_De_Silva"]
[Black "WonderChampion"]
[Result "1-0"]
[WhiteElo "2292"]
[BlackElo "2017"]
[TimeControl "180+1"]
[EndTime "10:28:01 PDT"]
[Termination "Susal_De_Silva won by checkmate"]

1. e4 {[%clk 0:03:00.9]} 1... c5 {[%clk 0:02:57.7]} 2. Nf3 {[%clk 0:03:00.6]}
2... g6 {[%clk 0:02:55.9]} 3. c3 {[%clk 0:02:59]} 3... Nf6 {[%clk 0:02:54.3]} 4.
e5 {[%clk 0:02:57.5]} 4... Nd5 {[%clk 0:02:53.9]} 5. d4 {[%clk 0:02:58.1]} 5...
cxd4 {[%clk 0:02:53.1]} 6. cxd4 {[%clk 0:02:58.7]} 6... Bg7 {[%clk 0:02:45.2]}
7. Bc4 {[%clk 0:02:57.4]} 7... Nb6 {[%clk 0:02:43.9]} 8. Bb3 {[%clk 0:02:56.8]}
8... O-O {[%clk 0:02:42.7]} 9. O-O {[%clk 0:02:56.3]} 9... Nc6 {[%clk
0:02:39.2]} 10. Nc3 {[%clk 0:02:55]} 10... d6 {[%clk 0:02:36.1]} 11. exd6 {[%clk
0:02:42.7]} 11... Qxd6 {[%clk 0:02:33.6]} 12. Be3 {[%clk 0:02:40.2]} 12... Bg4
{[%clk 0:02:24.7]} 13. Nb5 {[%clk 0:02:22.6]} 13... Qd7 {[%clk 0:02:14.3]} 14.
h3 {[%clk 0:02:21.4]} 14... Bf5 {[%clk 0:01:58]} 15. d5 {[%clk 0:02:14.9]} 15...
Ne5 {[%clk 0:01:52.2]} 16. Nfd4 {[%clk 0:02:10.5]} 16... Rfd8 {[%clk 0:01:23.2]}
17. g4 {[%clk 0:02:01.2]} 17... Bd3 {[%clk 0:01:04.2]} 18. Nc3 {[%clk
0:01:52.1]} 18... Bxf1 {[%clk 0:01:02.7]} 19. Qxf1 {[%clk 0:01:52.8]} 19... Nec4
{[%clk 0:00:54.4]} 20. Bxc4 {[%clk 0:01:51.5]} 20... Nxc4 {[%clk 0:00:53.9]} 21.
Qxc4 {[%clk 0:01:52.2]} 21... Rac8 {[%clk 0:00:51.6]} 22. Qe2 {[%clk 0:01:51.3]}
22... Qc7 {[%clk 0:00:45.6]} 23. Rd1 {[%clk 0:01:48.1]} 23... a6 {[%clk
0:00:42]} 24. Qf3 {[%clk 0:01:46.4]} 24... b5 {[%clk 0:00:34.6]} 25. Nc6 {[%clk
0:01:44]} 25... Rd7 {[%clk 0:00:30.4]} 26. Nxe7+ {[%clk 0:01:36.4]} 26... Rxe7
{[%clk 0:00:28.1]} 27. d6 {[%clk 0:01:36.2]} 27... Rxe3 {[%clk 0:00:19.5]} 28.
dxc7 {[%clk 0:01:32.5]} 28... Rxf3 {[%clk 0:00:18.4]} 29. Rd8+ {[%clk 0:01:33]}
29... Rxd8 {[%clk 0:00:15]} 30. cxd8=Q+ {[%clk 0:01:33]} 30... Bf8 {[%clk
0:00:15.2]} 31. Kg2 {[%clk 0:01:27.6]} 31... Rf4 {[%clk 0:00:13.4]} 32. Nd5
{[%clk 0:01:27.7]} 32... Ra4 {[%clk 0:00:09.8]} 33. Nf6+ {[%clk 0:01:23.3]}
33... Kg7 {[%clk 0:00:09.7]} 34. b3 {[%clk 0:01:15.8]} 34... Rxa2 {[%clk
0:00:08.9]} 35. Qd4 {[%clk 0:01:15.7]} 35... Kh6 {[%clk 0:00:02.4]} 36. Ng8+
{[%clk 0:01:13.9]} 36... Kg5 {[%clk 0:00:01.6]} 37. Qf6# {[%clk 0:01:14.2]} 1-0

[Event "*** SCC Grand Prix: Titled Tuesday Blitz"]
[Site "Chess.com"]
[Date "2020.07.14"]
[Round "3"]
[White "Canonkasparov"]
[Black "davigator"]
[Result "1-0"]
[WhiteElo "2557"]
[BlackElo "2359"]
[TimeControl "180+1"]
[EndTime "10:28:02 PDT"]
[Termination "Canonkasparov won by resignation"]

1. d4 {[%clk 0:02:58.7]} 1... Nf6 {[%clk 0:02:59]} 2. Nf3 {[%clk 0:02:59.6]}
2... e6 {[%clk 0:02:58.4]} 3. Bg5 {[%clk 0:03:00]} 3... c5 {[%clk 0:02:57.5]} 4.
e3 {[%clk 0:02:59.8]} 4... Qb6 {[%clk 0:02:57.5]} 5. b3 {[%clk 0:02:53.5]} 5...
Ne4 {[%clk 0:02:54.3]} 6. Bf4 {[%clk 0:02:41.5]} 6... Nc6 {[%clk 0:02:53.1]} 7.
c3 {[%clk 0:02:41.2]} 7... cxd4 {[%clk 0:02:48.1]} 8. exd4 {[%clk 0:02:40.7]}
8... d5 {[%clk 0:02:46.7]} 9. Bd3 {[%clk 0:02:40.5]} 9... Nf6 {[%clk 0:02:46.8]}
10. O-O {[%clk 0:02:39.3]} 10... Be7 {[%clk 0:02:46.8]} 11. h3 {[%clk 0:02:39]}
11... O-O {[%clk 0:02:46.2]} 12. a4 {[%clk 0:02:28.5]} 12... Bd7 {[%clk
0:02:45]} 13. b4 {[%clk 0:02:28.2]} 13... Rac8 {[%clk 0:02:42]} 14. a5 {[%clk
0:02:27.2]} 14... Qd8 {[%clk 0:02:42]} 15. Nbd2 {[%clk 0:02:24.5]} 15... Nb8
{[%clk 0:02:39.2]} 16. Qb3 {[%clk 0:02:21.2]} 16... a6 {[%clk 0:02:32]} 17. Rfc1
{[%clk 0:02:18.4]} 17... Bb5 {[%clk 0:02:31.7]} 18. Bxb5 {[%clk 0:02:13.2]}
18... axb5 {[%clk 0:02:31.4]} 19. Bxb8 {[%clk 0:02:13.3]} 19... Rxb8 {[%clk
0:02:30.3]} 20. a6 {[%clk 0:02:14.2]} 20... bxa6 {[%clk 0:02:29.9]} 21. Rxa6
{[%clk 0:02:13.9]} 21... Nd7 {[%clk 0:02:29.1]} 22. Ra7 {[%clk 0:02:09.7]} 22...
Bd6 {[%clk 0:02:27]} 23. Rca1 {[%clk 0:02:07.6]} 23... Nb6 {[%clk 0:02:26.7]}
24. Qc2 {[%clk 0:02:06.1]} 24... Na4 {[%clk 0:02:25.4]} 25. Nb3 {[%clk
0:02:03.9]} 25... Qb6 {[%clk 0:02:24.9]} 26. Ra5 {[%clk 0:02:02.7]} 26... Qc6
{[%clk 0:02:18]} 27. Nc5 {[%clk 0:02:02.2]} 27... Nb6 {[%clk 0:02:13.4]} 28. Qe2
{[%clk 0:01:52.8]} 28... Bxc5 {[%clk 0:02:09.9]} 29. dxc5 {[%clk 0:01:50.7]}
29... Nc4 {[%clk 0:02:09.9]} 30. Ra6 {[%clk 0:01:49]} 30... Qc7 {[%clk
0:02:10.4]} 31. Nd4 {[%clk 0:01:47.3]} 31... e5 {[%clk 0:02:10.3]} 32. Nc6
{[%clk 0:01:42.8]} 32... Rbe8 {[%clk 0:02:07.3]} 33. Na7 {[%clk 0:01:36.6]}
33... Qb7 {[%clk 0:02:02.7]} 34. c6 {[%clk 0:01:34.3]} 34... Qb8 {[%clk
0:02:02]} 35. Qd3 {[%clk 0:01:28.1]} 35... Rd8 {[%clk 0:02:00.1]} 36. g3 {[%clk
0:01:17.5]} 36... h5 {[%clk 0:01:54.4]} 37. h4 {[%clk 0:01:17]} 37... Rfe8
{[%clk 0:01:52.2]} 38. Qf5 {[%clk 0:01:02.2]} 38... g6 {[%clk 0:01:48.6]} 39.
Qg5 {[%clk 0:01:01.6]} 39... Rd6 {[%clk 0:01:41]} 40. c7 {[%clk 0:00:59.6]}
40... Qxc7 {[%clk 0:01:35.3]} 41. Nxb5 {[%clk 0:00:59.4]} 41... Qd7 {[%clk
0:01:27.5]} 42. Nxd6 {[%clk 0:00:58]} 42... Nxd6 {[%clk 0:01:25.4]} 43. Qf6
{[%clk 0:00:51.8]} 43... Ne4 {[%clk 0:01:23]} 44. Qc6 {[%clk 0:00:50.1]} 44...
Qxc6 {[%clk 0:01:16.2]} 45. Rxc6 {[%clk 0:00:51]} 45... Rd8 {[%clk 0:01:07.1]}
46. b5 {[%clk 0:00:48.5]} 46... d4 {[%clk 0:01:04.9]} 47. cxd4 {[%clk
0:00:48.4]} 47... exd4 {[%clk 0:01:05.2]} 48. b6 {[%clk 0:00:47.6]} 48... d3
{[%clk 0:01:05.1]} 49. b7 {[%clk 0:00:46]} 49... d2 {[%clk 0:01:05.2]} 50. Rc8
{[%clk 0:00:44.2]} 1-0

[Event "*** SCC Grand Prix: Titled Tuesday Blitz"]
[Site "Chess.com"]
[Date "2020.07.14"]
[Round "3"]
[White "KyrgyzFighter"]
[Black "j2806"]
[Result "1-0"]
[WhiteElo "2292"]
[BlackElo "2020"]
[TimeControl "180+1"]
[EndTime "10:28:02 PDT"]
[Termination "KyrgyzFighter won by resignation"]

1. c4 {[%clk 0:03:00.9]} 1... Nf6 {[%clk 0:02:59.5]} 2. Nc3 {[%clk 0:03:00.7]}
2... e6 {[%clk 0:02:59.7]} 3. e4 {[%clk 0:03:00.8]} 3... d5 {[%clk 0:02:56.7]}
4. e5 {[%clk 0:03:00.8]} 4... Ng8 {[%clk 0:02:56.9]} 5. d4 {[%clk 0:02:58.8]}
5... c5 {[%clk 0:02:48.8]} 6. cxd5 {[%clk 0:02:44.3]} 6... cxd4 {[%clk
0:02:41.1]} 7. Qxd4 {[%clk 0:02:31.5]} 7... Nc6 {[%clk 0:02:37]} 8. Qe4 {[%clk
0:02:31.7]} 8... exd5 {[%clk 0:02:30.5]} 9. Qxd5 {[%clk 0:02:22.3]} 9... Be6
{[%clk 0:02:17.8]} 10. Qxd8+ {[%clk 0:02:18.6]} 10... Rxd8 {[%clk 0:02:15.4]}
11. Bb5 {[%clk 0:02:18.5]} 11... Ne7 {[%clk 0:02:12]} 12. Nf3 {[%clk 0:02:11.9]}
12... a6 {[%clk 0:02:11.6]} 13. Bxc6+ {[%clk 0:02:11.1]} 13... Nxc6 {[%clk
0:02:10.9]} 14. Bg5 {[%clk 0:02:11]} 14... Be7 {[%clk 0:02:10.5]} 15. Bxe7
{[%clk 0:02:10.8]} 15... Kxe7 {[%clk 0:02:10.7]} 16. O-O {[%clk 0:02:06.7]}
16... Rd7 {[%clk 0:01:58.8]} 17. Ne4 {[%clk 0:01:56.6]} 17... b6 {[%clk
0:01:49.3]} 18. Rac1 {[%clk 0:01:39.7]} 18... Bd5 {[%clk 0:01:41.2]} 19. Rfe1
{[%clk 0:01:39.7]} 19... Rhd8 {[%clk 0:01:36.1]} 20. h3 {[%clk 0:01:31.2]} 20...
Bxe4 {[%clk 0:01:30.9]} 21. Rxe4 {[%clk 0:01:32.1]} 21... Nd4 {[%clk 0:01:30.3]}
22. Nxd4 {[%clk 0:01:17]} 22... Rxd4 {[%clk 0:01:28.3]} 23. Rxd4 {[%clk
0:01:17.9]} 23... Rxd4 {[%clk 0:01:28.2]} 24. Rc7+ {[%clk 0:01:18.6]} 24... Ke6
{[%clk 0:01:19.7]} 25. Rc6+ {[%clk 0:01:18.3]} 25... Kxe5 {[%clk 0:01:19.3]} 26.
Rxb6 {[%clk 0:01:18.7]} 26... Rd1+ {[%clk 0:01:16.4]} 27. Kh2 {[%clk 0:01:18.4]}
27... Rd2 {[%clk 0:01:11.4]} 28. Kg3 {[%clk 0:01:18]} 28... f5 {[%clk
0:01:04.3]} 29. f4+ {[%clk 0:01:10.7]} 29... Ke4 {[%clk 0:00:59.6]} 30. Rb7
{[%clk 0:01:07.9]} 30... Rd3+ {[%clk 0:00:55.5]} 31. Kh2 {[%clk 0:01:07.8]}
31... Kxf4 {[%clk 0:00:45.3]} 32. Rxg7 {[%clk 0:01:07.2]} 32... Rd2 {[%clk
0:00:44.8]} 33. Rb7 {[%clk 0:01:06.9]} 33... Ke3 {[%clk 0:00:41.8]} 34. a4
{[%clk 0:01:01.6]} 34... f4 {[%clk 0:00:39.4]} 35. b4 {[%clk 0:00:53.1]} 35...
f3 {[%clk 0:00:32.3]} 36. Re7+ {[%clk 0:00:52.5]} 36... Kf2 {[%clk 0:00:25.7]}
37. Rf7 {[%clk 0:00:52]} 37... Rd3 {[%clk 0:00:17.9]} 38. Rxf3+ {[%clk
0:00:50.9]} 38... Rxf3 {[%clk 0:00:17.4]} 39. gxf3 {[%clk 0:00:51.8]} 39... Kxf3
{[%clk 0:00:17.7]} 40. b5 {[%clk 0:00:52.4]} 1-0

[Event "*** SCC Grand Prix: Titled Tuesday Blitz"]
[Site "Chess.com"]
[Date "2020.07.14"]
[Round "3"]
[White "antoszu"]
[Black "tdf98pantani"]
[Result "1-0"]
[WhiteElo "2519"]
[BlackElo "2675"]
[TimeControl "180+1"]
[EndTime "10:28:03 PDT"]
[Termination "antoszu won by resignation"]

1. d4 {[%clk 0:03:00.9]} 1... d5 {[%clk 0:02:58.8]} 2. c4 {[%clk 0:03:00.9]}
2... e6 {[%clk 0:02:58.7]} 3. Nc3 {[%clk 0:03:00.7]} 3... Nf6 {[%clk 0:02:58.8]}
4. Nf3 {[%clk 0:02:59.8]} 4... c6 {[%clk 0:02:56.8]} 5. Bg5 {[%clk 0:02:58.4]}
5... Nbd7 {[%clk 0:02:55.6]} 6. e3 {[%clk 0:02:57.9]} 6... h6 {[%clk 0:02:55.9]}
7. Bh4 {[%clk 0:02:56.9]} 7... Be7 {[%clk 0:02:56.1]} 8. Qc2 {[%clk 0:02:55.3]}
8... O-O {[%clk 0:02:56.1]} 9. Rd1 {[%clk 0:02:55.5]} 9... b6 {[%clk 0:02:53]}
10. a3 {[%clk 0:02:55.3]} 10... Bb7 {[%clk 0:02:50.9]} 11. Be2 {[%clk
0:02:54.4]} 11... a6 {[%clk 0:02:39.2]} 12. O-O {[%clk 0:02:45.6]} 12... dxc4
{[%clk 0:02:35.6]} 13. Bxc4 {[%clk 0:02:45.3]} 13... b5 {[%clk 0:02:32.9]} 14.
Be2 {[%clk 0:02:45.2]} 14... c5 {[%clk 0:02:31.8]} 15. dxc5 {[%clk 0:02:41.3]}
15... Bxc5 {[%clk 0:02:29.7]} 16. Bxf6 {[%clk 0:01:51.5]} 16... gxf6 {[%clk
0:02:29.3]} 17. Ne4 {[%clk 0:01:45.9]} 17... Be7 {[%clk 0:02:24.8]} 18. Ng3
{[%clk 0:01:45.1]} 18... Qc8 {[%clk 0:02:18.4]} 19. Qd2 {[%clk 0:01:35.5]} 19...
Rd8 {[%clk 0:02:09.5]} 20. Qd4 {[%clk 0:01:29.2]} 20... Ne5 {[%clk 0:01:57]} 21.
Qf4 {[%clk 0:01:25.3]} 21... Nxf3+ {[%clk 0:01:44.3]} 22. Bxf3 {[%clk
0:01:26.2]} 22... Bxf3 {[%clk 0:01:44]} 23. Qxf3 {[%clk 0:01:27.1]} 23... Qc4
{[%clk 0:01:36.2]} 24. Nh5 {[%clk 0:01:01.2]} 24... f5 {[%clk 0:01:35.7]} 25. h3
{[%clk 0:00:57.4]} 25... Qh4 {[%clk 0:01:29.5]} 26. Nf4 {[%clk 0:00:50.8]} 26...
Rac8 {[%clk 0:01:18.8]} 27. Qb7 {[%clk 0:00:46.7]} 27... e5 {[%clk 0:00:32]} 28.
g3 {[%clk 0:00:36.1]} 28... Qg5 {[%clk 0:00:28.2]} 29. h4 {[%clk 0:00:32.1]}
29... Qg4 {[%clk 0:00:17.6]} 30. Rxd8+ {[%clk 0:00:31.7]} 30... Rxd8 {[%clk
0:00:17.8]} 31. Qxe7 {[%clk 0:00:31.6]} 1-0

[Event "*** SCC Grand Prix: Titled Tuesday Blitz"]
[Site "Chess.com"]
[Date "2020.07.14"]
[Round "3"]
[White "Nara_Kh"]
[Black "biaf13"]
[Result "1-0"]
[WhiteElo "2266"]
[BlackElo "1954"]
[TimeControl "180+1"]
[EndTime "10:28:05 PDT"]
[Termination "Nara_Kh won on time"]

1. e4 {[%clk 0:03:00.9]} 1... c5 {[%clk 0:02:58.7]} 2. Be2 {[%clk 0:02:55.6]}
2... Nc6 {[%clk 0:02:56.9]} 3. f4 {[%clk 0:02:54.1]} 3... e6 {[%clk 0:02:55.9]}
4. Nf3 {[%clk 0:02:54]} 4... Nge7 {[%clk 0:02:50.7]} 5. O-O {[%clk 0:02:53.3]}
5... g6 {[%clk 0:02:50.6]} 6. d3 {[%clk 0:02:49.4]} 6... Bg7 {[%clk 0:02:48.2]}
7. c3 {[%clk 0:02:47.2]} 7... O-O {[%clk 0:02:45.7]} 8. Be3 {[%clk 0:02:42.7]}
8... b6 {[%clk 0:02:43.8]} 9. d4 {[%clk 0:02:38.8]} 9... cxd4 {[%clk 0:02:43.2]}
10. cxd4 {[%clk 0:02:38.7]} 10... d5 {[%clk 0:02:42.7]} 11. e5 {[%clk
0:02:38.5]} 11... Nf5 {[%clk 0:02:41.5]} 12. Bf2 {[%clk 0:02:37.7]} 12... Bh6
{[%clk 0:02:31.2]} 13. g4 {[%clk 0:02:27]} 13... Nfe7 {[%clk 0:02:25.4]} 14. Bg3
{[%clk 0:02:15.2]} 14... a6 {[%clk 0:02:15.1]} 15. Nc3 {[%clk 0:02:08.8]} 15...
b5 {[%clk 0:02:14.1]} 16. Qd2 {[%clk 0:02:08.6]} 16... Qb6 {[%clk 0:02:09]} 17.
Kh1 {[%clk 0:02:04.5]} 17... Rd8 {[%clk 0:02:02]} 18. Bh4 {[%clk 0:01:57.4]}
18... Re8 {[%clk 0:01:54]} 19. Bf6 {[%clk 0:01:46.8]} 19... Bd7 {[%clk
0:01:39.5]} 20. Rad1 {[%clk 0:01:45]} 20... Na5 {[%clk 0:01:37.6]} 21. Ng5
{[%clk 0:01:35.1]} 21... Nc4 {[%clk 0:01:32.9]} 22. Qe1 {[%clk 0:01:26.1]} 22...
Bxg5 {[%clk 0:00:40.6]} 23. fxg5 {[%clk 0:01:08.2]} 23... h6 {[%clk 0:00:15]}
24. Qh4 {[%clk 0:01:03.2]} 24... Nf5 {[%clk 0:00:09.7]} 25. gxf5 {[%clk
0:00:56.7]} 25... h5 {[%clk 0:00:08.8]} 26. fxg6 {[%clk 0:00:42.7]} 26... fxg6
{[%clk 0:00:04.5]} 27. Bxh5 {[%clk 0:00:38.1]} 1-0

[Event "*** SCC Grand Prix: Titled Tuesday Blitz"]
[Site "Chess.com"]
[Date "2020.07.14"]
[Round "3"]
[White "carlesdc96"]
[Black "FedaMaster"]
[Result "1-0"]
[WhiteElo "2711"]
[BlackElo "2357"]
[TimeControl "180+1"]
[EndTime "10:28:15 PDT"]
[Termination "carlesdc96 won by resignation"]

1. Nf3 {[%clk 0:03:00.9]} 1... c5 {[%clk 0:02:58.2]} 2. e4 {[%clk 0:02:59.4]}
2... d6 {[%clk 0:02:50.4]} 3. Bb5+ {[%clk 0:02:54.7]} 3... Nd7 {[%clk
0:02:48.6]} 4. d4 {[%clk 0:02:53.8]} 4... a6 {[%clk 0:02:46.8]} 5. Bxd7+ {[%clk
0:02:53]} 5... Bxd7 {[%clk 0:02:47.7]} 6. dxc5 {[%clk 0:02:48.1]} 6... dxc5
{[%clk 0:02:48.6]} 7. Nc3 {[%clk 0:02:47.3]} 7... Bb5 {[%clk 0:02:35.2]} 8.
Qxd8+ {[%clk 0:02:42.6]} 8... Rxd8 {[%clk 0:02:35.7]} 9. a4 {[%clk 0:02:43.5]}
9... Bc6 {[%clk 0:02:33.9]} 10. Ne5 {[%clk 0:02:40.1]} 10... Rc8 {[%clk
0:02:32.8]} 11. Bf4 {[%clk 0:02:37.6]} 11... e6 {[%clk 0:02:27.5]} 12. a5 {[%clk
0:02:29.5]} 12... Ne7 {[%clk 0:02:11.9]} 13. Nc4 {[%clk 0:02:27.4]} 13... Ng6
{[%clk 0:01:47.2]} 14. Bg3 {[%clk 0:02:14.2]} 14... f5 {[%clk 0:01:42.2]} 15. f3
{[%clk 0:01:50.7]} 15... fxe4 {[%clk 0:01:42.1]} 16. fxe4 {[%clk 0:01:45.1]}
16... Rd8 {[%clk 0:01:40.5]} 17. Rd1 {[%clk 0:01:15.5]} 17... Rd4 {[%clk
0:01:40]} 18. b3 {[%clk 0:00:56.3]} 18... Be7 {[%clk 0:01:39.8]} 19. O-O {[%clk
0:00:46.2]} 19... Rf8 {[%clk 0:01:37.2]} 20. Rfe1 {[%clk 0:00:39.4]} 20... Nf4
{[%clk 0:01:16.3]} 21. Bf2 {[%clk 0:00:30.9]} 21... Rxd1 {[%clk 0:01:10.4]} 22.
Rxd1 {[%clk 0:00:31.8]} 22... Bf6 {[%clk 0:01:03.9]} 23. Na4 {[%clk 0:00:26]}
23... Bd4 {[%clk 0:00:47.5]} 24. Bxd4 {[%clk 0:00:20.1]} 24... Ne2+ {[%clk
0:00:47.3]} 25. Kh1 {[%clk 0:00:20.3]} 25... cxd4 {[%clk 0:00:48.2]} 26. Nc5
{[%clk 0:00:20.3]} 26... Rf4 {[%clk 0:00:38.4]} 27. h3 {[%clk 0:00:18.5]} 27...
Bxe4 {[%clk 0:00:33.9]} 28. Nxe4 {[%clk 0:00:16.5]} 28... Rxe4 {[%clk
0:00:33.6]} 29. Nd6+ {[%clk 0:00:16.5]} 29... Ke7 {[%clk 0:00:33.4]} 30. Nxe4
{[%clk 0:00:17.4]} 30... e5 {[%clk 0:00:33.6]} 31. Re1 {[%clk 0:00:16.4]} 31...
Nf4 {[%clk 0:00:33.1]} 32. Nc5 {[%clk 0:00:16.5]} 32... Kf6 {[%clk 0:00:33.1]}
33. Nd7+ {[%clk 0:00:16.1]} 33... Kf5 {[%clk 0:00:32]} 34. Nxe5 {[%clk 0:00:17]}
34... d3 {[%clk 0:00:31.6]} 35. Nxd3 {[%clk 0:00:17.2]} 35... Nd5 {[%clk
0:00:31.6]} 36. Re5+ {[%clk 0:00:16.6]} 1-0

[Event "*** SCC Grand Prix: Titled Tuesday Blitz"]
[Site "Chess.com"]
[Date "2020.07.14"]
[Round "3"]
[White "pavelalexandru07"]
[Black "margarita_2703"]
[Result "0-1"]
[WhiteElo "2133"]
[BlackElo "2379"]
[TimeControl "180+1"]
[EndTime "10:28:15 PDT"]
[Termination "margarita_2703 won by resignation"]

1. e4 {[%clk 0:03:00.9]} 1... Nf6 {[%clk 0:02:54.1]} 2. e5 {[%clk 0:03:00.9]}
2... Nd5 {[%clk 0:02:51]} 3. d4 {[%clk 0:03:00.6]} 3... d6 {[%clk 0:02:46.9]} 4.
Nf3 {[%clk 0:02:58]} 4... g6 {[%clk 0:02:41.5]} 5. Be2 {[%clk 0:02:54.2]} 5...
Bg7 {[%clk 0:02:41.3]} 6. b3 {[%clk 0:02:53.1]} 6... O-O {[%clk 0:02:40.8]} 7.
Bb2 {[%clk 0:02:52.9]} 7... Nf4 {[%clk 0:02:30.4]} 8. Bf1 {[%clk 0:02:48.7]}
8... c5 {[%clk 0:02:25.7]} 9. dxc5 {[%clk 0:02:38.2]} 9... dxe5 {[%clk
0:02:16.6]} 10. Qxd8 {[%clk 0:02:36.5]} 10... Rxd8 {[%clk 0:02:16.1]} 11. g3
{[%clk 0:02:36.5]} 11... Ne6 {[%clk 0:02:07.4]} 12. Nbd2 {[%clk 0:02:05.3]}
12... Nc6 {[%clk 0:02:03.9]} 13. Bb5 {[%clk 0:01:59.5]} 13... Nb4 {[%clk
0:01:55.3]} 14. O-O-O {[%clk 0:01:53.9]} 14... Nxa2+ {[%clk 0:01:50.3]} 15. Kb1
{[%clk 0:01:53.8]} 15... Nb4 {[%clk 0:01:50.2]} 16. Nxe5 {[%clk 0:01:27.6]}
16... Nxc5 {[%clk 0:01:46.8]} 17. Ndf3 {[%clk 0:01:18.3]} 17... Bf5 {[%clk
0:01:42.4]} 18. Rxd8+ {[%clk 0:00:57.6]} 18... Rxd8 {[%clk 0:01:41.5]} 19. Bc4
{[%clk 0:00:55.5]} 19... Bxc2+ {[%clk 0:01:37.9]} 20. Kc1 {[%clk 0:00:53.8]}
20... Bh6+ {[%clk 0:01:25.2]} 21. Ng5 {[%clk 0:00:43.3]} 21... Bxg5+ {[%clk
0:01:24.7]} 22. f4 {[%clk 0:00:43.5]} 22... Bf6 {[%clk 0:01:17.4]} 23. Nxf7
{[%clk 0:00:42.6]} 23... Bxb3 {[%clk 0:01:11]} 24. Nxd8+ {[%clk 0:00:30.8]}
24... Bxc4 {[%clk 0:01:08.2]} 25. Bxf6 {[%clk 0:00:30.5]} 25... exf6 {[%clk
0:01:06.3]} 26. Kd2 {[%clk 0:00:30.6]} 26... b5 {[%clk 0:01:02.2]} 27. Re1
{[%clk 0:00:28.5]} 27... Kf8 {[%clk 0:00:59]} 28. Kc3 {[%clk 0:00:25.2]} 28...
a5 {[%clk 0:00:56.7]} 29. Kd4 {[%clk 0:00:24]} 29... Ncd3 {[%clk 0:00:52.6]} 30.
Re4 {[%clk 0:00:11.3]} 30... a4 {[%clk 0:00:50.1]} 31. Kc3 {[%clk 0:00:05.7]}
31... a3 {[%clk 0:00:46.9]} 32. Rxc4 {[%clk 0:00:04.3]} 32... bxc4 {[%clk
0:00:44.7]} 33. Ne6+ {[%clk 0:00:04.3]} 33... Ke7 {[%clk 0:00:43.2]} 34. Nd4
{[%clk 0:00:04]} 34... a2 {[%clk 0:00:40.5]} 0-1